bitfinex/quotes_SOLUSD_20220302
["timestamp","ask_amount","ask_price","bid_price","bid_amount"]
[1646231475257,2.28523196,101.68,101.53,0.43509164]
[1646231475460,3.936,101.67,101.53,11.54]
[1646231475658,53.03558521,101.66,101.54,31.93629463]
[1646231475861,6.0,101.65,101.54,31.93629463]
[1646231476065,6.0,101.65,101.54,29.50096943]
[1646231476258,24.44688709,101.64,101.54,29.50096943]
[1646231476458,28.38388709,101.64,101.54,29.50096943]
[1646231476660,26.73211905,101.64,101.54,29.50096943]
[1646231476860,54.29042914,101.64,101.54,29.50096943]
[1646231477259,14.7778,101.6,101.54,29.50096943]
[1646231477458,67.81338521,101.6,101.54,29.50096943]
[1646231477861,67.81338521,101.6,101.48,11.54]
[1646231478060,53.03558521,101.6,101.48,11.54]
[1646231478762,53.03558521,101.6,101.45,2.54904003]
[1646231478963,55.32081717,101.6,101.46,46.75516085]
[1646231479160,12.90688709,101.58,101.46,46.75516085]
[1646231479363,53.03558521,101.56,101.46,44.51843831]
[1646231479562,14.787,101.54,101.42,17.82126261]
[1646231479764,5.6,101.54,101.42,6.48804003]
[1646231480167,5.6,101.54,101.42,3.939]
[1646231480564,12.90688709,101.53,101.43,59.43467774]
[1646231481187,20.98088709,101.53,101.42,3.939]
[1646231481394,20.98088709,101.53,101.39,2.07084149]
[1646231481587,20.98088709,101.53,101.37,11.54]
[1646231481588,34.80611905,101.53,101.37,11.54]
[1646231481786,133.55611905,101.53,101.36,2.54904003]
[1646231481990,192.69611905,101.53,101.35,23.76320181]
[1646231482188,47.43096437,101.51,101.35,54.3988583]
[1646231482387,18.51150793,101.48,101.35,56.82908609]
[1646231482588,47.43096437,101.46,101.35,56.82908609]
[1646231482793,53.17296437,101.46,101.35,65.9388583]
[1646231483088,53.17296437,101.46,101.35,54.3988583]
[1646231483293,9.944,101.45,101.35,54.3988583]
[1646231483490,18.51150793,101.44,101.35,54.3988583]
[1646231483692,18.51150793,101.44,101.31,14.08904003]
[1646231484090,18.51150793,101.44,101.32,2.54904003]
[1646231484290,18.51150793,101.44,101.33,11.54]
[1646231484489,3.944,101.52,101.33,11.79]
[1646231484790,2.28527471,101.51,101.34,32.856587]
[1646231484989,3.943,101.5,101.35,11.54]
[1646231485190,3.943,101.5,101.35,38.55250169]
[1646231485394,2.28527471,101.49,101.35,35.75346166]
[1646231485591,49.3356,101.46,101.36,60.25969515]
[1646231485792,19.488,101.47,101.33,2.41096435]
[1646231485999,2.28527471,101.45,101.29,14.08904003]
[1646231486191,3.944,101.44,101.29,36.4182245]
[1646231486391,11.54,101.43,101.29,2.21584312]
[1646231486590,11.54,101.43,101.26,22.32918447]
[1646231486591,3.946,101.42,101.26,35.88581812]
[1646231486891,49.3642,101.4,101.26,35.74582582]
[1646231487091,49.3642,101.4,101.26,11.54]
[1646231487292,14.8105,101.37,101.26,11.54]
[1646231487490,8.001,101.37,101.27,498.80919332]
[1646231487694,6.0,101.36,101.27,498.80919332]
[1646231487897,49.14881468,101.36,101.28,44.32453662]
[1646231489996,14.8139,101.35,101.23,28.90124003]
[1646231490195,51.43391581,101.36,101.23,11.54]
[1646231490404,3.948,101.35,101.23,11.54]
[1646231490597,49.14881468,101.36,101.22,11.54]
[1646231490996,14.8138,101.35,101.23,60.98014423]
[1646231491195,22.79365762,101.34,101.23,60.98014423]
[1646231491395,22.79365762,101.34,101.23,72.52014423]
[1646231491597,22.79365762,101.34,101.23,72.77014423]
[1646231491997,6.0,101.33,101.23,72.77014423]
[1646231492200,6.0,101.33,101.23,97.64836873]
[1646231492399,6.0,101.33,101.25,14.8086]
[1646231492598,3.948,101.4,101.25,28.61626182]
[1646231492800,6.0,101.39,101.26,0.30753537]
[1646231493007,8.28539645,101.39,101.26,0.30753537]
[1646231493199,80.13718509,101.38,101.26,38.84795035]
[1646231493499,65.32768509,101.38,101.26,38.84795035]
[1646231493699,2.28539645,101.37,101.26,38.84795035]
[1646231493901,6.84718366,101.36,101.26,38.84795035]
[1646231494202,9.13258011,101.36,101.26,38.84795035]
[1646231494401,3.948,101.35,101.26,38.84795035]
[1646231494607,55.89283471,101.34,101.26,36.63883606]
[1646231494802,55.89283471,101.34,101.22,11.54]
[1646231495001,2.28539645,101.33,101.2,17.18540865]
[1646231495708,10.04963759,101.32,101.21,59.50063218]
[1646231495903,10.04963759,101.32,101.21,61.84446133]
[1646231496103,10.04963759,101.32,101.21,76.65986133]
[1646231496303,10.04963759,101.32,101.22,0.28985182]
[1646231496505,10.04963759,101.32,101.22,11.82985182]
[1646231496705,2.27969405,101.36,101.22,12.07985182]
[1646231496903,3.95,101.38,101.22,115.85316607]
[1646231497105,6.22969405,101.38,101.23,20.8124]
[1646231497305,6.22969405,101.38,101.24,0.28985182]
[1646231497306,15.49,101.38,101.24,0.28985182]
[1646231497507,40.97831009,101.38,101.24,0.28985182]
[1646231497707,60.72472139,101.37,101.23,23.57158934]
[1646231498009,5.21775091,101.35,101.23,23.03173752]
[1646231498207,59.28425542,101.33,101.23,23.28173752]
[1646231498607,6.65821688,101.31,101.23,23.28173752]
[1646231498806,6.0,101.32,101.23,23.28173752]
[1646231499006,6.0,101.32,101.24,0.28985182]
[1646231499208,6.0,101.32,101.25,14.8103]
[1646231499407,6.22769405,101.38,101.25,19.66105108]
[1646231499610,62.94807473,101.45,101.26,110.0]
[1646231499808,32.2,101.52,101.27,8.947]
[1646231500009,10.31185138,101.48,101.47,10.3]
[1646231500211,14.7924,101.51,101.47,10.3]
[1646231500410,98.75,101.53,101.47,10.3]
[1646231500610,10.30290743,101.52,101.47,10.3]
[1646231500809,48.67360134,101.54,101.47,17.256]
[1646231501013,1.406,101.53,101.47,17.256]
[1646231501609,3.94,101.58,101.47,19.17948046]
[1646231501822,14.23235126,101.62,101.47,10.3]
[1646231502212,14.7853,101.57,101.47,21.84]
[1646231502514,50.5893544,101.57,101.47,10.3]
[1646231502712,208.4793544,101.57,101.47,10.3]
[1646231503115,3.94,101.56,101.47,10.3]
[1646231503315,203.27761075,101.55,101.47,10.3]
[1646231503513,104.52761075,101.55,101.47,10.3]
[1646231503713,45.38761075,101.55,101.47,10.3]
[1646231503916,45.38761075,101.55,101.47,22.09]
[1646231504114,45.38761075,101.55,101.47,24.09408756]
[1646231504317,14.5241,101.63,101.47,24.09408756]
[1646231504517,26.94681622,101.94,101.47,33.12408756]
[1646231504518,11.54,101.66,101.47,33.12408756]
[1646231504716,71.08294917,101.66,101.48,14.7754]
[1646231504918,1.427,101.65,101.49,11.54]
[1646231505116,1.427,101.65,101.49,11.79]
[1646231505315,51.6642093,101.65,101.49,11.54]
[1646231505516,11.54,101.64,101.47,10.3]
[1646231505721,157.89,101.63,101.47,10.3]
[1646231505919,117.94748438,101.62,101.47,10.55]
[1646231506217,78.58849477,101.62,101.47,0.25]
[1646231506417,77.15949477,101.62,101.48,3.939]
[1646231506618,44.66056527,101.6,101.47,0.25]
[1646231506817,44.66056527,101.6,101.48,3.939]
[1646231507019,44.66056527,101.6,101.48,13.153]
[1646231507243,44.66056527,101.6,101.49,11.54]
[1646231507422,44.66056527,101.6,101.5,20.78694388]
[1646231507620,3.939,101.67,101.51,11.54]
[1646231507822,3.939,101.67,101.51,27.97258262]
[1646231508019,3.936,101.69,101.52,3.936]
[1646231508222,3.936,101.69,101.53,118.62982446]
[1646231508420,32.64110561,101.72,101.54,3.936]
[1646231508626,73.43102682,101.71,101.55,118.77221736]
[1646231508824,73.43102682,101.71,101.56,3.935]
[1646231509023,58.66892682,101.71,101.57,17.54]
[1646231509223,60.89978139,101.69,101.57,125.51039804]
[1646231509424,20.56112869,101.78,101.57,125.51039804]
[1646231509425,3.935,101.72,101.58,2.54904003]
[1646231509625,3.935,101.77,101.59,118.74876706]
[1646231509829,14.7578,101.75,101.59,118.99876706]
[1646231510026,3.934,101.74,101.6,2.54904003]
[1646231510228,3.934,101.74,101.61,118.39749822]
[1646231510424,3.85912,101.76,101.62,3.934]
[1646231510628,3.85912,101.76,101.63,118.41000346]
[1646231510828,3.85912,101.76,101.65,14.7491]
[1646231511126,3.934,101.79,101.66,11.54]
[1646231511328,3.934,101.79,101.63,14.325]
[1646231511329,3.934,101.79,101.63,2.34018712]
[1646231511528,52.17320164,101.78,101.63,11.79]
[1646231511727,9.932,101.77,101.63,11.79]
[1646231511927,43.47063424,101.76,101.64,9.932]
[1646231512127,43.47063424,101.76,101.65,11.54]
[1646231512528,2.23976057,101.75,101.6,8.932]
[1646231512727,59.04516201,101.74,101.61,11.54]
[1646231512929,55.11116201,101.74,101.62,11.54]
[1646231513129,55.11116201,101.74,101.63,11.54]
[1646231513333,55.11116201,101.74,101.63,36.58293091]
[1646231513529,3.932,101.79,101.63,135.33293091]
[1646231513728,2.23976057,101.78,101.64,3.932]
[1646231513932,2.23976057,101.78,101.65,19.83549658]
[1646231514128,2.23976057,101.78,101.65,20.08549658]
[1646231514532,0.4935437,101.8,101.65,11.54]
[1646231514533,56.9122492,101.77,101.65,11.54]
[1646231514743,3.932,101.76,101.61,11.54]
[1646231514949,58.85231989,101.75,101.62,6.0]
[1646231515144,52.76425314,101.73,101.62,6.0]
[1646231515344,6.17176057,101.74,101.62,19.57348076]
[1646231515546,2.23976057,101.74,101.63,113.5028]
[1646231515751,0.13620467,101.76,101.63,113.5028]
[1646231515752,0.13620467,101.76,101.64,118.53880994]
[1646231515948,0.13620467,101.76,101.64,121.33784997]
[1646231516146,0.13620467,101.76,101.65,3.932]
[1646231516346,0.13620467,101.76,101.66,17.54]
[1646231516548,0.13620467,101.76,101.66,14.08904003]
[1646231516746,14.89100467,101.76,101.66,14.33904003]
[1646231516946,60.76488552,101.75,101.66,11.79]
[1646231517147,6.0,101.74,101.66,11.79]
[1646231518046,0.13620467,101.76,101.66,11.79]
[1646231518247,0.13620467,101.76,101.67,6.0]
[1646231518449,0.13620467,101.76,101.68,11.54]
[1646231518946,0.13620467,101.76,101.66,0.25]
[1646231519146,2.23976057,101.76,101.66,0.25]
[1646231519347,58.59918164,101.75,101.66,11.79]
[1646231519546,2.23976057,101.79,101.66,11.79]
[1646231519746,6.17176057,101.79,101.66,19.483]
[1646231519947,6.17176057,101.79,101.66,21.72552079]
[1646231520550,49.94099164,101.78,101.66,21.72552079]
[1646231520961,52.19458741,101.78,101.66,24.27456082]
[1646231521347,52.19458741,101.78,101.66,16.58156082]
[1646231521548,52.19458741,101.78,101.66,11.54]
[1646231521753,3.932,101.77,101.59,3.932]
[1646231521948,3.932,101.77,101.6,11.54]
[1646231521949,59.23948016,101.76,101.6,11.54]
[1646231522149,59.23948016,101.76,101.58,11.89168939]
[1646231522150,61.49307593,101.76,101.61,17.59912205]
[1646231522352,14.7577,101.74,101.61,17.59912205]
[1646231522554,65.79200593,101.73,101.61,17.59912205]
[1646231522751,6.0,101.73,101.61,17.59912205]
[1646231522950,6.0,101.73,101.62,106.8069134]
[1646231523151,6.0,101.77,101.64,98.75]
[1646231523455,6.0,101.77,101.65,19.59363941]
[1646231523653,6.0,101.77,101.65,42.31793941]
[1646231523853,44.21768869,101.76,101.65,42.31793941]
[1646231524452,44.21768869,101.76,101.65,11.79]
[1646231525056,44.21768869,101.76,101.65,11.54]
[1646231525255,61.22675833,101.76,101.61,23.58223873]
[1646231525456,61.22675833,101.76,101.62,17.54]
[1646231525655,61.22675833,101.76,101.62,118.5839628]
[1646231525856,43.16870807,101.74,101.62,118.5839628]
[1646231526257,6.0,101.73,101.62,118.5839628]
[1646231526458,59.0168814,101.72,101.62,118.5839628]
[1646231526861,6.0,101.73,101.62,137.2705628]
[1646231527058,6.0,101.73,101.62,198.95960283]
[1646231527262,14.7624,101.79,101.62,207.32460283]
[1646231527459,14.7624,101.79,101.63,0.19944515]
[1646231527663,14.7624,101.79,101.65,159.83769315]
[1646231527859,66.50050293,101.79,101.67,100.85888505]
[1646231528063,4.4255437,101.8,101.69,115.62943378]
[1646231528259,0.4935437,101.8,101.7,118.49400805]
[1646231528460,0.4935437,101.8,101.7,19.99400805]
[1646231529159,0.4935437,101.8,101.7,11.79]
[1646231529559,60.05456482,101.8,101.7,11.79]
[1646231529860,66.05456482,101.8,101.7,11.79]
[1646231531166,2.25476964,101.79,101.7,11.54]
[1646231531361,55.46726997,101.78,101.67,11.54]
[1646231532161,6.0,101.77,101.67,112.29628598]
[1646231532361,56.57351578,101.76,101.68,6.0]
[1646231532661,0.4935437,101.8,101.68,112.69640312]
[1646231532864,6.4935437,101.8,101.68,112.69640312]
[1646231533160,6.4935437,101.8,101.69,6.0]
[1646231533362,21.2411437,101.8,101.7,11.54]
[1646231533560,58.81418667,101.79,101.7,0.25]
[1646231534664,58.81418667,101.79,101.69,0.25]
[1646231534867,58.81418667,101.79,101.68,11.79]
[1646231536166,14.7505,101.78,101.68,11.79]
[1646231536467,51.68924723,101.77,101.68,11.79]
[1646231537171,51.68924723,101.77,101.68,14.33904003]
[1646231537566,51.68924723,101.77,101.68,114.97275127]
[1646231537966,51.68924723,101.77,101.68,129.71845127]
[1646231538167,51.68924723,101.77,101.68,16.22275127]
[1646231538369,51.68924723,101.77,101.68,11.54]
[1646231538568,6.0,101.76,101.68,11.54]
[1646231538768,43.14431566,101.75,101.68,11.54]
[1646231539168,43.14431566,101.75,101.68,14.08904003]
[1646231539568,43.14431566,101.75,101.68,14.33904003]
[1646231541270,14.7482,101.79,101.68,129.79265174]
[1646231541578,0.4935437,101.8,101.68,129.79265174]
[1646231541769,0.4935437,101.8,101.69,106.68925389]
[1646231541971,0.4935437,101.8,101.7,11.54]
[1646231542269,0.4935437,101.8,101.7,11.79]
[1646231542469,59.83308485,101.79,101.7,11.79]
[1646231542870,74.58058485,101.79,101.7,11.79]
[1646231543672,74.58058485,101.79,101.7,0.25]
[1646231543870,74.58058485,101.79,101.69,16.98531695]
[1646231544077,14.749,101.78,101.68,11.54]
[1646231544272,62.10069564,101.79,101.68,11.54]
[1646231544670,160.85069564,101.79,101.68,11.54]
[1646231545072,223.92169564,101.79,101.68,11.54]
[1646231545373,55.29556461,101.76,101.66,3.932]
[1646231545574,160.88956461,101.76,101.66,3.932]
[1646231545872,163.1571754,101.76,101.66,3.932]
[1646231546273,14.7574,101.73,101.66,3.932]
[1646231546574,57.74224385,101.72,101.66,3.932]
[1646231548078,6.0,101.71,101.66,0.25]
[1646231548273,47.99462648,101.7,101.66,0.25]
[1646231549080,47.99462648,101.7,101.63,11.79]
[1646231549475,47.99462648,101.7,101.63,11.54]
[1646231550077,47.99462648,101.7,101.61,11.54]
[1646231550278,47.99462648,101.7,101.6,11.54]
[1646231550477,47.99462648,101.7,101.59,11.54]
[1646231550676,47.99462648,101.7,101.59,0.25]
[1646231550875,14.7618,101.69,101.59,28.36894085]
[1646231551078,48.49659987,101.68,101.59,28.61894085]
[1646231551275,3.935,101.73,101.59,28.61894085]
[1646231551475,3.934,101.74,101.59,127.36894085]
[1646231551680,3.934,101.74,101.59,28.61894085]
[1646231551976,14.7602,101.7,101.59,28.61894085]
[1646231552375,51.57937124,101.69,101.59,28.61894085]
[1646231552576,3.934,101.75,101.64,14.7556]
[1646231552777,3.932,101.76,101.64,17.3013842]
[1646231552979,14.755,101.74,101.64,17.3013842]
[1646231553182,3.932,101.76,101.64,127.5913842]
[1646231553478,44.7467478,101.76,101.65,0.29738276]
[1646231553676,44.7467478,101.76,101.68,14.7486]
[1646231553877,44.7467478,101.76,101.68,16.91441826]
[1646231554080,44.7467478,101.76,101.68,2.16581826]
[1646231554283,44.7467478,101.76,101.68,0.25]
[1646231554482,44.52063112,101.74,101.65,17.54]
[1646231554785,44.52063112,101.74,101.65,19.7859746]
[1646231554983,44.52063112,101.74,101.65,11.79]
[1646231556009,44.52063112,101.74,101.66,17.16378268]
[1646231556205,44.52063112,101.74,101.66,28.95378268]
[1646231556405,6.0,101.75,101.66,127.70378268]
[1646231556606,14.7508,101.77,101.66,127.70378268]
[1646231556809,14.7508,101.77,101.66,28.95378268]
[1646231557306,47.55301476,101.76,101.66,127.70378268]
[1646231558105,6.0,101.75,101.66,127.70378268]
[1646231558307,47.55301476,101.76,101.66,127.70378268]
[1646231559112,1.35665772,101.78,101.7,14.745]
[1646231559311,1.35665772,101.79,101.71,11.54]
[1646231559512,6.0,101.78,101.71,11.79]
[1646231560107,66.29462478,101.78,101.71,11.79]
[1646231560308,6.0,101.78,101.71,11.79]
[1646231560608,6.0,101.79,101.72,14.7424]
[1646231560807,6.0,101.79,101.72,25.99847652]
[1646231561009,6.0,101.79,101.72,37.53847652]
[1646231561410,0.4935437,101.8,101.72,37.53847652]
[1646231561610,6.4935437,101.8,101.72,136.28847652]
[1646231562013,0.4935437,101.8,101.72,195.42847652]
[1646231562213,0.4935437,101.8,101.74,101.20056718]
[1646231562418,1.35020142,101.84,101.75,133.44974934]
[1646231562611,49.5162289,101.83,101.75,141.42974934]
[1646231562809,49.5162289,101.83,101.75,36.67974934]
[1646231563413,1.35020142,101.84,101.75,36.67974934]
[1646231563614,6.19561079,101.86,101.75,36.67974934]
[1646231564114,2.26761079,101.86,101.76,6.0]
[1646231564317,2.26761079,101.86,101.76,161.92762934]
[1646231564514,54.38341595,101.87,101.77,6.0]
[1646231564713,50.68621638,101.85,101.79,14.7328]
[1646231564914,50.68621638,101.85,101.77,11.54]
[1646231565316,65.42401638,101.85,101.77,11.54]
[1646231565519,65.42401638,101.85,101.73,26.49250378]
[1646231565719,52.95382717,101.85,101.74,6.0]
[1646231565921,6.0,101.84,101.74,6.0]
[1646231566118,56.60176769,101.83,101.74,6.0]
[1646231566419,56.60176769,101.83,101.74,19.60420076]
[1646231566621,56.60176769,101.83,101.74,34.59440076]
[1646231567021,6.0,101.84,101.74,133.34440076]
[1646231567221,6.0,101.84,101.74,141.55140076]
[1646231567422,6.0,101.84,101.74,144.10044079]
[1646231567621,6.0,101.86,101.74,144.10044079]
[1646231567830,6.0,101.86,101.74,42.55140076]
[1646231568024,57.32853975,101.85,101.74,34.34440076]
[1646231568224,72.64550349,101.85,101.74,34.34440076]
[1646231568423,72.64550349,101.85,101.74,133.09440076]
[1646231568623,59.31661613,101.83,101.74,34.34440076]
[1646231569226,41.92954477,101.86,101.74,133.34440076]
[1646231569427,6.0,101.86,101.75,2.54904003]
[1646231569624,21.19224477,101.87,101.76,126.93922745]
[1646231569824,15.32270298,101.85,101.76,127.18922745]
[1646231570027,15.32270298,101.85,101.77,6.0]
[1646231570225,15.32270298,101.88,101.78,110.29]
[1646231570425,14.82270298,101.88,101.78,11.54]
[1646231570626,14.7336,101.88,101.79,14.732]
[1646231570824,14.7336,101.88,101.79,14.982]
[1646231571031,63.067,101.9,101.79,0.25]
[1646231571226,59.76141755,101.87,101.76,11.54]
[1646231571426,62.02902834,101.87,101.75,2.15502598]
[1646231571625,58.52628218,101.85,101.73,11.54]
[1646231572128,58.48200156,101.83,101.73,11.54]
[1646231572325,14.7421,101.82,101.74,14.7411]
[1646231572525,58.48200156,101.83,101.72,73.34729661]
[1646231572926,117.62200156,101.83,101.72,2.04279661]
[1646231573126,119.88961235,101.83,101.7,11.54]
[1646231573327,149.59769541,101.83,101.69,2.54904003]
[1646231573624,171.81066254,101.83,101.68,92.86576504]
[1646231573826,153.52869541,101.83,101.68,92.86576504]
[1646231574024,79.58831235,101.83,101.68,172.00041006]
[1646231574226,79.58831235,101.83,101.69,101.13033599]
[1646231574425,75.65731235,101.83,101.7,11.54]
[1646231574627,56.82104916,101.79,101.7,11.54]
[1646231575624,3.931,101.82,101.69,14.747]
[1646231575625,43.25439665,101.77,101.69,14.747]
[1646231576123,43.25439665,101.77,101.68,80.81111261]
[1646231576326,43.25439665,101.77,101.67,70.81294046]
[1646231576826,58.00359665,101.77,101.67,85.56384046]
[1646231577427,43.25439665,101.77,101.67,85.56384046]
[1646231577627,43.25439665,101.77,101.68,11.54]
[1646231577628,6.0,101.76,101.68,11.54]
[1646231577827,57.43071419,101.75,101.7,14.745]
[1646231578627,57.43071419,101.75,101.68,13.97798711]
[1646231578829,57.43071419,101.75,101.68,17.18708711]
[1646231579531,57.43071419,101.75,101.67,70.94257794]
[1646231579831,72.18281419,101.75,101.64,11.54]
[1646231580028,6.0,101.74,101.64,23.8400946]
[1646231580230,56.72234331,101.73,101.64,23.8400946]
[1646231580529,56.72234331,101.73,101.63,80.95284144]
[1646231580928,71.47724331,101.73,101.63,95.70974144]
[1646231581130,71.47724331,101.73,101.63,80.95284144]
[1646231581330,172.50931393,101.73,101.62,71.4229]
[1646231581529,77.69331393,101.73,101.62,71.4229]
[1646231581729,136.83331393,101.73,101.62,71.4229]
[1646231582029,5.0,101.67,101.6,16.96135836]
[1646231582334,59.66225073,101.69,101.61,120.69315853]
[1646231582628,59.66225073,101.69,101.61,33.73315853]
[1646231582929,72.0526,101.76,101.61,56.55302232]
[1646231583127,49.1803,101.76,101.62,28.31205799]
[1646231583328,49.1803,101.76,101.62,11.79]
[1646231583528,14.7541,101.74,101.63,14.7561]
[1646231583731,48.73190869,101.73,101.63,17.27919776]
[1646231583930,5.0,101.72,101.63,17.27919776]
[1646231584232,49.87972056,101.71,101.63,17.02919776]
[1646231584530,64.63732056,101.71,101.61,25.28337589]
[1646231584934,6.0,101.7,101.58,49.91507088]
[1646231585132,46.89655136,101.69,101.58,49.91507088]
[1646231585334,54.23555136,101.69,101.58,49.91507088]
[1646231585831,60.01773253,101.67,101.58,49.91507088]
[1646231586232,59.01773253,101.67,101.58,49.91507088]
[1646231586432,59.01773253,101.67,101.57,37.8535]
[1646231586636,59.01773253,101.67,101.57,16.75757399]
[1646231586933,79.42082785,101.67,101.54,22.8378]
[1646231587134,79.42082785,101.67,101.51,16.54]
[1646231587135,138.56082785,101.67,101.48,129.07925421]
[1646231587333,10.11681214,101.66,101.49,11.54]
[1646231587536,66.1693955,101.65,101.48,91.37235421]
[1646231587734,68.45049082,101.65,101.48,91.37235421]
[1646231587933,5.0,101.61,101.48,91.37235421]
[1646231588139,58.1364043,101.6,101.48,91.37235421]
[1646231588435,72.9148043,101.6,101.48,79.83235421]
[1646231588635,6.0,101.59,101.49,6.0]
[1646231589237,3.939,101.62,101.49,11.54]
[1646231589539,5.0,101.6,101.49,11.54]
[1646231589962,6.0,101.61,101.49,125.91561747]
[1646231590168,6.0,101.61,101.5,0.18676781]
[1646231590359,6.0,101.61,101.51,110.29]
[1646231590562,3.938,101.68,101.52,0.27265977]
[1646231590761,47.734,101.69,101.53,110.29]
[1646231590962,3.936,101.68,101.54,0.28154011]
[1646231591161,55.83015246,101.68,101.55,11.54]
[1646231591361,51.89415246,101.68,101.56,0.28154011]
[1646231591563,51.89415246,101.68,101.55,32.38666759]
[1646231591764,51.89415246,101.68,101.55,12.07154011]
[1646231591965,6.0,101.67,101.55,11.79]
[1646231592265,45.61009419,101.66,101.55,11.79]
[1646231594068,60.37979419,101.66,101.54,41.55024496]
[1646231594266,5.0,101.65,101.54,26.78244496]
[1646231594467,52.68466921,101.64,101.54,26.78244496]
[1646231594671,57.68466921,101.64,101.54,26.78244496]
[1646231594869,52.68466921,101.64,101.54,26.78244496]
[1646231595074,52.68466921,101.64,101.54,38.32244496]
[1646231595475,52.68466921,101.64,101.54,38.57244496]
[1646231595671,52.68466921,101.64,101.54,27.03244496]
[1646231596072,6.0,101.63,101.54,26.78244496]
[1646231596272,50.95487313,101.62,101.54,26.78244496]
[1646231597272,5.0,101.64,101.54,26.78244496]
[1646231597482,5.0,101.64,101.55,0.19937292]
[1646231597672,3.936,101.67,101.55,0.19937292]
[1646231597876,3.936,101.69,101.56,11.54]
[1646231598073,66.98029532,101.7,101.56,11.54]
[1646231598274,74.97705887,101.69,101.56,11.54]
[1646231598473,74.97705887,101.69,101.56,112.74897136]
[1646231598875,5.0,101.68,101.56,112.74897136]
[1646231599073,57.30786753,101.67,101.56,13.99897136]
[1646231599273,57.30786753,101.67,101.56,11.79]
[1646231599974,62.30786753,101.67,101.56,11.79]
[1646231600177,57.30786753,101.67,101.56,11.79]
[1646231600377,48.08983867,101.65,101.56,110.54]
[1646231600574,48.08983867,101.65,101.56,11.79]
[1646231601579,6.0,101.66,101.57,0.17959594]
[1646231601778,6.0,101.66,101.57,14.94329594]
[1646231601977,6.0,101.66,101.57,15.0137]
[1646231602379,5.0,101.67,101.57,15.0137]
[1646231602578,6.0,101.66,101.57,116.01882985]
[1646231602779,5.0,101.67,101.58,0.20149842]
[1646231602983,3.936,101.72,101.59,127.14855404]
[1646231603182,3.934,101.73,101.6,0.31648139]
[1646231603379,8.28109532,101.74,101.62,0.31648139]
[1646231603581,54.75644613,101.74,101.63,112.28214424]
[1646231603879,6.0,101.74,101.63,164.25248427]
[1646231604080,14.7526,101.77,101.64,105.06648139]
[1646231604280,14.7526,101.77,101.65,11.54]
[1646231604480,21.04324428,101.77,101.65,28.68526326]
[1646231604682,42.85110948,101.76,101.65,28.68526326]
[1646231604882,18.687,101.75,101.65,28.68526326]
[1646231605081,43.01107769,101.74,101.65,28.68526326]
[1646231605484,3.932,101.76,101.65,28.68526326]
[1646231605681,33.13079495,101.77,101.65,28.68526326]
[1646231606482,48.39426514,101.76,101.65,13.93246326]
[1646231606689,67.07896514,101.76,101.64,25.6125136]
[1646231606884,2.28421008,101.75,101.64,25.8625136]
[1646231607083,48.30531407,101.74,101.64,25.6125136]
[1646231607485,10.22264428,101.76,101.64,124.3625136]
[1646231607685,7.28421008,101.77,101.65,110.29]
[1646231607884,6.0,101.76,101.65,11.79]
[1646231608683,53.51823931,101.76,101.66,101.104329]
[1646231608884,53.51823931,101.76,101.66,11.79]
[1646231610084,53.51823931,101.76,101.67,16.83976854]
[1646231610284,53.51823931,101.76,101.67,17.08976854]
[1646231610484,53.51823931,101.76,101.65,11.54]
[1646231610485,55.80244952,101.76,101.65,11.54]
[1646231610688,62.71544952,101.76,101.64,25.61836466]
[1646231610884,62.71544952,101.76,101.64,37.15836466]
[1646231611084,62.40258258,101.73,101.64,37.15836466]
[1646231611287,62.40258258,101.73,101.64,25.61836466]
[1646231612088,57.83778616,101.71,101.64,25.86836466]
[1646231612288,57.83778616,101.71,101.64,0.25]
[1646231612487,57.83778616,101.71,101.63,26.64766309]
[1646231612690,65.26578616,101.71,101.62,24.4266]
[1646231613495,85.02508616,101.71,101.59,11.54]
[1646231613792,72.54999637,101.71,101.59,14.762]
[1646231613990,72.54999637,101.71,101.59,15.012]
[1646231614393,171.29999637,101.71,101.59,15.012]
[1646231614590,72.54999637,101.71,101.59,15.012]
[1646231614993,14.7645,101.68,101.59,15.012]